[Event "74th PGNiG TERMIKA POL-ch Women 2022"]
[Site "Kruszwica"]
[Date "2022.05.13"]
[Round "5.3"]
[White "Socko, Monika"]
[Black "Cyfka, Karina"]
[Result "1-0"]
[ECO "E04"]
[WhiteElo "2384"]
[BlackElo "2404"]
[Annotator "TA"]
[PlyCount "111"]
[EventDate "2022.05.09"]
[EventType "tourn"]
[EventCountry "POL"]
[SourceTitle "playchess.com"]
[Source "ChessBase"]
[SourceQuality "1"]
[TimeControl "40/5400+30:1800+30"]

{[%evp 11,111,26,24,9,22,9,7,0,93,90,82,81,70,60,63,34,43,41,33,20,70,29,32,37,37,38,49,0,0,0,0,0,17,0,19,23,96,88,104,115,123,112,118,108,97,125,128,119,139,80,122,71,86,110,132,122,141,0,125,0,130,107,111,113,111,108,110,99,112,107,132,134,152,140,152,145,166,158,183,156,172,177,177,183,251,230,1089,1081,1370,1247,1236,1222,1168,1167,1642,1704,29983,29984,29984,29985,29985,29986]} 1. d4 {[%emt 0:00:03]} Nf6 {[%emt 0:00:05]} 2. c4 {[%emt 0:00:05]} e6 {[%emt 0:00:05]} 3. g3 {[%emt 0:00:15]} d5 {[%emt 0:00:36]} 4. Bg2 {[%emt 0:00:17]} dxc4 {[%emt 0:00:49]} 5. Nf3 {[%emt 0:00:56]} a6 {[%emt 0:01:18]} 6. O-O {[%emt 0:05:49]} Nc6 {[%emt 0:00:52]} 7. Nbd2 {[%emt 0:01:35] E04: Open Catalan: 5 Nf3.} b5 {[%emt 0:01:03]} 8. b3 {[%emt 0:01:22]} c3 {[%emt 0:22:30]} (8... Nxd4 9. Ne5 Nd5 10. e3 $16) 9. Nb1 {[%emt 0:00:05] [#] Black must now prevent Ne5. The position is equal.} Rb8 $146 {[%emt 0:00:38]} (9... b4 $11 {remains equal.}) ({Predecessor:} 9... b4 10. a3 Rb8 11. axb4 Bxb4 12. Qc2 O-O 13. Rd1 Bb7 14. Nxc3 Be7 15. Ba3 Nb4 {1-0 (41) Sadhwani,R (2555)-Maghsoodloo,P (2698) Chess.com INT 2021}) 10. Nxc3 $16 {[%emt 0:01:11]} Bb7 {[%emt 0:00:35]} 11. Bg5 {[%emt 0:13:47]} Be7 {[%emt 0:20:10]} 12. Rc1 {[%emt 0:03:59]} O-O {[%emt 0:14:18]} 13. e4 {[%emt 0:18:52]} b4 {[%emt 0:09:39]} 14. Bxf6 {[%emt 0:00:58]} Bxf6 {[%emt 0:00:04]} 15. Ne2 {[%emt 0:00:03]} a5 {[%emt 0:02:48]} (15... Na7 $11) 16. Qc2 {[%emt 0:09:40]} (16. e5 $5 {[%cal Re5f6]} Be7 17. Qd3 $14) 16... Nxd4 {[%emt 0:04:39]} 17. Nexd4 {[%emt 0:04:16]} Bxd4 {[%emt 0:00:05]} 18. Nxd4 {[%emt 0:00:43]} Qxd4 {[%emt 0:00:05]} 19. Rfd1 {[%emt 0:00:03]} (19. Qxc7 $14 {should be considered.} Qa7 20. e5) 19... Qa7 $11 {[%emt 0:06:19]} 20. Qxc7 {[%emt 0:03:35]} Rbc8 {[%emt 0:00:26]} 21. Qe7 {[%emt 0:05:59]} Rce8 {[%emt 0:02:32]} 22. Qg5 {[%emt 0:04:48]} Qa8 {[%emt 0:00:51]} 23. Rc5 {[%emt 0:01:01]} Bxe4 {[%emt 0:02:14]} (23... h6 $11 {keeps the balance.} 24. Qe5 Rd8) 24. Rxa5 $16 {[%emt 0:02:40] White is more active.} Qb7 {[%emt 0:00:25]} 25. Rb5 {[%emt 0:00:51]} Qa8 {[%emt 0:00:04]} 26. Bxe4 {[%emt 0:01:47]} Qxe4 {[%emt 0:00:02]} 27. Qd2 {[%emt 0:00:06]} Qa8 {[%emt 0:01:36]} 28. Ra1 {[%emt 0:04:52]} (28. Rxb4 Rd8 29. Rd4 Rxd4 30. Qxd4 Qxa2 $14) (28. Qxb4 $6 Qxa2 29. Rd7 Qb1+ 30. Kg2 Ra8 $11) 28... Rd8 {[%emt 0:03:21]} 29. Qxb4 {[%emt 0:00:05]} Rd7 {[%emt 0:00:45]} 30. Re5 {[%emt 0:05:08]} (30. a4 $142) 30... Rfd8 {[%emt 0:00:30]} 31. Qe1 {[%emt 0:04:13]} (31. a4 $142) 31... Qf3 {[%emt 0:01:32]} 32. Re3 {[%emt 0:00:13]} Qh5 {[%emt 0:01:43] ...Rd1 is the strong threat.} 33. Qe2 {[%emt 0:00:41]} Qc5 {[%emt 0:01:26]} 34. Qe1 {[%emt 0:00:36]} Qh5 $1 {[%emt 0:00:31] Threatens to win with ...Rd1.} 35. Qe2 {[%emt 0:03:21]} Qc5 {[%emt 0:00:06]} (35... Rd1+ 36. Rxd1 Rxd1+ 37. Kg2 Qxe2 38. Rxe2 $16) 36. a4 {[%emt 0:00:27] Black is now going downhill.} Rd2 {[%emt 0:00:46]} 37. Qf3 {[%emt 0:00:04]} h6 {[%emt 0:02:16]} 38. Rae1 {[%emt 0:00:39]} Rc2 {[%emt 0:00:23]} 39. Re5 {[%emt 0:00:50]} Qb4 {[%emt 0:00:16]} 40. R5e4 {[%emt 0:00:00]} Qa5 {[%emt 0:00:00]} 41. Rd1 {[%emt 0:03:36]} Rxd1+ {[%emt 0:08:28]} 42. Qxd1 {[%emt 0:00:04][%mdl 4096] Endgame KQR-KQR} Rd2 {[%emt 0:00:06]} 43. Qf3 {[%emt 0:01:01]} Rb2 {[%emt 0:01:22]} 44. Kg2 {[%emt 0:04:45]} Qb6 {[%emt 0:04:31]} 45. Re3 {[%emt 0:01:37]} g6 {[%emt 0:01:13]} 46. Rd3 {[%emt 0:05:28]} Kg7 {[%emt 0:02:54] Inhibits Qf6+.} 47. h4 {[%emt 0:03:37]} ({Don't take} 47. Rd7 $6 Rxf2+ 48. Qxf2 Qc6+ 49. Qf3 Qxd7 $14) 47... e5 {[%emt 0:02:17] [#]} (47... g5 {is a better defense.} 48. b4 (48. Rd7 Rxf2+ 49. Qxf2 Qc6+ 50. Qf3 Qxd7 $14) 48... gxh4) 48. a5 $1 $18 {[%emt 0:03:56]} Qc5 {[%emt 0:03:32]} (48... Qf6 49. Qxf6+ Kxf6 50. Rd6+ Kf5 51. g4+ Ke4) 49. Rd7 {[%emt 0:03:43]} Rxf2+ {[%emt 0:00:20]} 50. Qxf2 {[%emt 0:00:01]} Qc6+ {[%emt 0:00:05] [#]} 51. Kh2 $1 {[%emt 0:00:03]} Qxd7 {[%emt 0:00:03]} 52. a6 {[%emt 0:00:06] And now a7 would win.} e4 {[%emt 0:03:06]} 53. a7 {[%emt 0:00:34]} Qe8 {[%emt 0:01:21]} 54. Qd4+ {[%emt 0:01:17] White mates.} Kh7 {[%emt 0:00:36]} 55. Qd5 {[%emt 0:00:32]} Qc8 {[%emt 0:02:36]} 56. a8=Q {[%emt 0:00:32] Weighted Error Value: White=0.13 (very precise) /Black=0.30} 1-0

[Event "74th PGNiG TERMIKA POL-ch Women 2022"]
[Site "Kruszwica"]
[Date "2022.05.13"]
[Round "5.4"]
[White "Zawadzka, Jolanta"]
[Black "Kulon, Klaudia"]
[Result "1-0"]
[ECO "B32"]
[WhiteElo "2409"]
[BlackElo "2305"]
[Annotator "TA"]
[PlyCount "117"]
[EventDate "2022.05.09"]
[EventType "tourn"]
[EventCountry "POL"]
[SourceTitle "playchess.com"]
[Source "ChessBase"]
[SourceQuality "1"]
[TimeControl "40/5400+30:1800+30"]

{[%evp 10,117,25,24,33,35,37,27,50,29,49,31,32,27,40,0,49,59,43,60,42,54,41,52,57,45,58,56,64,64,62,61,62,20,70,18,10,-6,20,-14,0,0,5,-22,0,0,0,0,0,0,0,0,4,14,31,27,79,64,72,66,106,71,189,0,0,0,0,-41,-49,-60,-60,-79,-79,-79,-79,-152,-152,-152,-79,-138,-67,-67,-67,-71,-71,-149,-148,-220,-141,-121,-113,-373,-344,-439,-439,-427,-428,-399,-385,-345,0,0,602,591,1486,1335,2947,2438,1498,1439]} 1. e4 {[%emt 0:00:02]} c5 {[%emt 0:00:04]} 2. Nf3 {[%emt 0:00:05][%cal Bg1f3,Bf3d4,Bd4b5,Bb5c3][%mdl 32]} Nc6 {[%emt 0:00:05]} 3. d4 {[%emt 0:00:05]} cxd4 {[%emt 0:00:04]} 4. Nxd4 {[%emt 0:00:03]} e5 {[%emt 0:00:05]} 5. Nb5 {[%emt 0:00:05]} d6 {[%emt 0:00:05]} 6. c4 {[%emt 0:00:05]} g6 {[%emt 0:00:11] 6...Be6 is becoming the main line. B32: Sicilian: Löwenthal and Kalashnikov Variations.} 7. Bd3 {[%emt 0:00:08]} Nf6 {[%emt 0:00:21]} 8. O-O {[%emt 0:01:40]} a6 {[%emt 0:01:21] White has an edge.} 9. N5c3 {[%emt 0:01:37]} Bg7 {[%emt 0:00:31]} 10. Na3 {[%emt 0:15:59]} Be6 {[%emt 0:01:39]} 11. Nc2 {[%emt 0:00:35]} Rc8 {[%emt 0:01:59] [#]} 12. Nd5 $146 {[%emt 0:05:25]} ({Predecessor:} 12. Bg5 O-O 13. Qd2 Qb6 14. b3 Nd7 15. Ne3 Qa5 16. Ned5 Bxd5 17. Nxd5 Qxd2 18. Bxd2 {0-1 (72) Godzwon,I (2321)-Swiercz,D (2664) Chess.com INT 2022}) 12... Bxd5 {[%emt 0:06:49]} (12... Nd7 $11 {deserves consideration.}) 13. cxd5 $14 {[%emt 0:02:03]} Nd4 {[%emt 0:01:23]} 14. Nxd4 {[%emt 0:00:50]} exd4 {[%emt 0:00:05]} 15. Bg5 {[%emt 0:02:33]} h6 {[%emt 0:06:56]} 16. Bh4 {[%emt 0:01:23]} Qa5 {[%emt 0:09:17]} 17. f4 {[%emt 0:18:26] Strongly threatening e5.} O-O {[%emt 0:06:01]} 18. Qf3 {[%emt 0:00:09]} Qb6 {[%emt 0:08:45]} 19. b3 {[%emt 0:13:14]} Nd7 {[%emt 0:06:30]} 20. Rad1 {[%emt 0:00:12]} Rfe8 {[%emt 0:04:16]} 21. Kh1 {[%emt 0:00:55]} Qa5 {[%emt 0:08:51]} (21... Rc3 $11) 22. Bb1 {[%emt 0:02:24]} (22. Qg4 $14 Qc7 23. b4) 22... Rc3 $11 {[%emt 0:01:08]} 23. Qg4 {[%emt 0:01:40]} Qc7 {[%emt 0:00:22]} (23... Qb5 $5 {[%cal Rh6h5]} 24. Rde1 a5 $11) 24. Rd2 {[%emt 0:07:21]} h5 {[%emt 0:05:30]} 25. Qd1 {[%emt 0:00:43]} Rc8 {[%emt 0:01:30]} 26. h3 {[%emt 0:01:30]} Bh6 {[%emt 0:03:35][%cal Oh6f4]} 27. Qe2 {[%emt 0:01:32]} Rc1 {[%emt 0:03:14]} 28. Rdd1 {[%emt 0:00:33]} Rxd1 {[%emt 0:00:05]} 29. Qxd1 {[%emt 0:00:10]} Qc3 {[%emt 0:00:25]} 30. Be1 {[%emt 0:04:55][%cal Bh4e1,Be1d2,Bd2b4][%mdl 32]} Qc1 {[%emt 0:05:37]} 31. Bd2 {[%emt 0:00:35]} Qxd1 {[%emt 0:00:12]} 32. Rxd1 {[%emt 0:00:05]} h4 {[%emt 0:00:41]} (32... Nc5 $11 {keeps the balance.}) 33. Kg1 $16 {[%emt 0:01:30]} f6 {[%emt 0:05:51]} 34. Kf2 {[%emt 0:00:20]} Kg7 {[%emt 0:01:30]} 35. Kf3 {[%emt 0:02:07]} g5 {[%emt 0:00:30]} (35... Kf7 $16 {might work better.}) 36. Bb4 $2 {[%emt 0:03:49]} (36. e5 $1 $18) 36... gxf4 $11 {[%emt 0:01:44]} 37. Bxd6 {[%emt 0:00:14]} Ne5+ {[%emt 0:01:05]} 38. Kf2 {[%emt 0:01:39]} Kf7 {[%emt 0:02:06]} 39. Bxe5 {[%emt 0:12:37]} ({Avoid the trap} 39. Rxd4 $2 Rc1 40. Bd3 Rd1 41. Bxe5 (41. Ke2 $2 f3+ 42. gxf3 Rd2+ 43. Kf1 Nxd3 $19) 41... fxe5 $19) 39... fxe5 $15 {[%emt 0:00:04][%mdl 4096] Endgame KRB-KRB} 40. Bd3 {[%emt 0:00:00]} Ke7 {[%emt 0:00:00]} 41. Bc4 {[%emt 0:02:23]} Kd6 {[%emt 0:03:36]} 42. Kf3 {[%emt 0:00:40]} (42. Bd3 $142) 42... Rg8 $17 {[%emt 0:00:24]} 43. Be2 {[%emt 0:04:34]} Rg3+ {[%emt 0:09:53]} 44. Kf2 {[%emt 0:00:06]} f3 {[%emt 0:02:49]} (44... Re3 $1 $17 45. Rd3 Rxe4) 45. Bxf3 $15 {[%emt 0:00:35]} Be3+ {[%emt 0:00:11]} 46. Ke2 {[%emt 0:02:03]} Rg7 {[%emt 0:00:17][%mdl 1024] Black has strong compensation.} 47. Rf1 {[%emt 0:03:43]} (47. Rd3 $142) 47... Rc7 $17 {[%emt 0:00:54]} 48. Bh5 {[%emt 0:04:07]} (48. Ke1 $17) 48... Bf4 {[%emt 0:05:19]} 49. Kf3 {[%emt 0:02:33]} Rc2 {[%emt 0:02:22]} 50. Rf2 $2 {[%emt 0:01:22][%mdl 8192] [#]} (50. a4 $17) 50... d3 $1 $19 {[%emt 0:00:05]} 51. Rf1 {[%emt 0:00:06]} Rxa2 {[%emt 0:03:59]} 52. Rd1 {[%emt 0:00:58] [#]} d2 {[%emt 0:03:15]} 53. Kg4 {[%emt 0:04:45]} Bg3 {[%emt 0:00:11]} 54. Rf1 {[%emt 0:00:05]} Bf2 $2 {[%emt 0:00:14]} 55. Kg5 $11 {[%emt 0:00:50]} a5 $2 {[%emt 0:03:27][%mdl 8192]} 56. Rxf2 $18 {[%emt 0:00:46] White is clearly winning.} d1=Q {[%emt 0:00:15] ( -> ...Qc1+)} 57. Rf6+ {[%emt 0:00:05]} (57. Bxd1 $2 {is the wrong capture.} Rxf2 58. Bf3 Rb2 59. Kxh4 Rxb3 $19) 57... Ke7 {[%emt 0:00:05]} 58. Re6+ {[%emt 0:00:15]} Kd7 {[%emt 0:00:05]} 59. Bxd1 {[%emt 0:00:06] Quite a comeback for White.  Weighted Error Value: White=0.25 (precise) /Black=0.35} 1-0

[Event "74th PGNiG TERMIKA POL-ch Women 2022"]
[Site "Kruszwica"]
[Date "2022.05.13"]
[Round "5.5"]
[White "Kiolbasa, Oliwia"]
[Black "Malicka, Maria"]
[Result "1/2-1/2"]
[ECO "B12"]
[WhiteElo "2375"]
[BlackElo "2377"]
[Annotator "TA"]
[PlyCount "96"]
[EventDate "2022.05.09"]
[EventType "tourn"]
[EventCountry "POL"]
[SourceTitle "playchess.com"]
[Source "ChessBase"]
[SourceQuality "1"]
[TimeControl "40/5400+30:1800+30"]

{[%evp 9,96,5,17,15,30,-23,8,14,18,14,30,18,38,24,40,30,71,47,62,66,69,32,71,72,81,48,70,55,118,116,118,114,116,105,116,111,120,103,135,140,143,145,179,108,115,108,108,81,83,88,105,55,77,45,63,44,172,179,387,44,36,37,41,0,47,51,45,0,0,0,0,0,41,0,0,0,0,0,0,0,0,-16,0,0,0,-16,0,0,0]} 1. e4 {[%emt 0:00:03]} c6 {[%emt 0:00:02]} 2. d4 {[%emt 0:00:11]} d5 {[%emt 0:00:04]} 3. e5 {[%emt 0:00:12]} c5 {[%emt 0:00:06]} 4. dxc5 {[%emt 0:00:08]} e6 {[%emt 0:00:04]} 5. Nf3 {[%emt 0:00:25]} Bxc5 {[%emt 0:00:09]} 6. Bd3 {[%emt 0:00:21] B12: Caro-Kann: Advance Variation.} Ne7 $1 {[%emt 0:00:17][%mdl 4] now scores much better than the old 6...Nc6.} 7. Bf4 {[%emt 0:01:00]} (7. Nbd2 $142) 7... Nbc6 {[%emt 0:03:22]} (7... Qb6 $5 {[%cal Rc5f2]}) 8. O-O {[%emt 0:02:28]} Ng6 {[%emt 0:00:28]} 9. Bg3 {[%emt 0:00:21]} O-O {[%emt 0:05:27]} 10. Nbd2 {[%emt 0:02:41]} Bd7 {[%emt 0:06:27]} 11. Re1 {[%emt 0:13:19]} Rc8 {[%emt 0:19:01] [#]} 12. a3 $146 {[%emt 0:09:54]} ({Predecessor:} 12. c3 a6 13. Qb1 Be7 14. h4 Re8 15. h5 Nf8 16. Nf1 Na5 17. N1h2 Qb6 18. h6 {1-0 (30) Groszpeter,A (2493)-Boguszlavszkij,J (2281) Hungary 2001}) 12... f5 {[%emt 0:09:28] Strongly threatening ...f4.} 13. exf6 $1 {[%emt 0:00:49]} Qxf6 {[%emt 0:00:08]} 14. Bxg6 {[%emt 0:13:09]} Qxg6 {[%emt 0:08:38]} 15. b4 {[%emt 0:00:11]} Bb6 {[%emt 0:00:16][%cal Oe6e5]} 16. c4 {[%emt 0:02:09][%cal Bc2c4,Bc4c5][%mdl 32]} a6 {[%emt 0:09:05]} 17. c5 {[%emt 0:04:36]} Bc7 {[%emt 0:11:28] [#]} 18. Nc4 $1 {[%emt 0:12:58]} Qf6 {[%emt 0:00:56]} (18... Rxf3 $14 19. gxf3 Rd8) (18... dxc4 19. Qxd7) 19. Nd6 $16 {[%emt 0:04:49]} Bxd6 {[%emt 0:00:14]} 20. Bxd6 {[%emt 0:00:05]} Rf7 {[%emt 0:01:13]} 21. Ra2 {[%emt 0:00:39]} Re8 {[%emt 0:03:54]} 22. Rae2 {[%emt 0:04:14] Inhibits e5.} Qf5 {[%emt 0:03:15]} 23. Qd2 {[%emt 0:01:43]} h6 {[%emt 0:04:03]} 24. h3 {[%emt 0:02:29]} Qh5 {[%emt 0:05:13]} 25. Re3 {[%emt 0:02:40]} Rf6 {[%emt 0:04:46] [#]} 26. Kh2 {[%emt 0:00:24]} ({Better is} 26. a4 $1 $18) 26... d4 {[%emt 0:01:03]} 27. Nxd4 {[%emt 0:04:56]} Nxd4 {[%emt 0:00:38]} 28. Qxd4 {[%emt 0:00:05] aiming for Rg3.} Rxf2 {[%emt 0:00:54]} 29. Rg3 {[%emt 0:02:28][%csl Gg3,LRf2,LRg7][%cal Rd4g7]} Rf7 {[%emt 0:00:21]} 30. Be5 {[%emt 0:06:45] White is much more active.} (30. Re5 $16 g5 31. h4) 30... g5 $14 {[%emt 0:00:44]} 31. Qd3 {[%emt 0:02:16]} (31. h4 $5 {[%cal Rh2g1]}) 31... Bc6 {[%emt 0:01:02]} 32. Bb2 {[%emt 0:00:52]} Rd7 {[%emt 0:02:19]} (32... Rf5 $1 $14) 33. Qc3 $18 {[%emt 0:02:22] Threatening mate with Qh8+.} Kh7 {[%emt 0:00:19] [#] Against Qh8+} (33... Rh7 34. Rge3 Qf7) 34. Rge3 $2 {[%emt 0:01:57]} ({Only move:} 34. Rd3 $1 $18 {[%cal Rd3d7] White wants to mate with Rxd7+.} Qg6 35. Rxd7+ Bxd7 36. Qd4) 34... Qf7 $14 {[%emt 0:00:58]} 35. Qc2+ {[%emt 0:00:17]} Qg6 {[%emt 0:00:29]} 36. Qc3 {[%emt 0:00:42][%cal Oe3e6] Rxe6! is the strong threat.} Bd5 {[%emt 0:00:39]} (36... Qf7 $11 {is more appropriate.}) 37. a4 {[%emt 0:01:41]} Rf7 {[%emt 0:00:09]} 38. Re5 {[%emt 0:01:12][%cal Oe5d5] Hoping for Rxd5!} Ref8 {[%emt 0:00:34]} 39. b5 {[%emt 0:01:25]} axb5 {[%emt 0:00:53]} 40. axb5 {[%emt 0:00:00]} Rf2 {[%emt 0:00:00]} 41. Rxd5 {[%emt 0:18:59]} exd5 {[%emt 0:02:05] The position is equal.} 42. Re6 {[%emt 0:00:45] Really sharp!} Qf7 {[%emt 0:12:03] ( -> ...Rxg2+)} 43. Qd3+ {[%emt 0:00:06]} Qf5 $1 {[%emt 0:02:26]} 44. Re7+ {[%emt 0:02:22]} Kg6 $1 {[%emt 0:00:05]} 45. Re6+ {[%emt 0:03:56]} Kh7 {[%emt 0:02:21]} 46. Re7+ {[%emt 0:00:08]} Kg6 $1 {[%emt 0:00:02]} 47. Re6+ {[%emt 0:06:08]} Kh7 {[%emt 0:00:02]} 48. Re7+ {[%emt 0:00:34]} Kg6 $1 {[%emt 0:00:03] Weighted Error Value: White=0.29 (precise) /Black=0.20 (precise)} 1/2-1/2

[Event "74th PGNiG TERMIKA POL-ch Women 2022"]
[Site "Kruszwica"]
[Date "2022.05.14"]
[Round "6.1"]
[White "Malicka, Maria"]
[Black "Socko, Monika"]
[Result "0-1"]
[ECO "C01"]
[WhiteElo "2377"]
[BlackElo "2384"]
[Annotator "TA"]
[PlyCount "144"]
[EventDate "2022.05.09"]
[EventType "tourn"]
[EventCountry "POL"]
[SourceTitle "playchess.com"]
[Source "ChessBase"]
[SourceQuality "1"]
[TimeControl "40/5400+30:1800+30"]

{[%evp 20,144,0,0,0,0,0,0,0,0,22,14,27,38,35,28,147,140,129,16,19,20,12,10,40,4,56,18,29,20,27,29,34,3,3,3,10,0,30,23,47,20,220,82,461,472,419,249,307,297,324,201,506,494,452,447,414,437,414,263,311,265,438,362,362,387,384,352,372,355,326,289,289,282,435,434,429,420,439,437,410,322,260,239,224,166,147,108,108,101,108,115,504,150,150,150,150,106,267,472,452,452,432,354,354,354,1873,1691,4582,4133,1808,37,37,37,37,37,37,0,44,0,12,0,44,44,44,-29972,-29973]} 1. e4 {[%emt 0:00:02]} e6 {[%emt 0:00:04]} 2. d4 {[%emt 0:00:04]} d5 {[%emt 0:00:04]} 3. exd5 {[%emt 0:00:03]} exd5 {[%emt 0:00:18]} 4. Nf3 {[%emt 0:00:03]} Nc6 {[%emt 0:01:36]} 5. Bb5 {[%emt 0:00:15]} Bd6 {[%emt 0:02:41]} 6. c4 {[%emt 0:00:10]} dxc4 {[%emt 0:02:02]} 7. d5 {[%emt 0:00:10]} a6 {[%emt 0:00:03]} 8. Ba4 {[%emt 0:00:10]} b5 {[%emt 0:00:03]} 9. dxc6 {[%emt 0:00:07]} bxa4 {[%emt 0:00:06]} 10. O-O {[%emt 0:00:30]} Ne7 11. Qxa4 {[%emt 0:00:11]} Rb8 {[%emt 0:05:29] C01: French: Exchange Variation.} 12. a3 {[%emt 0:00:06] Prevents Rb4.} O-O {[%emt 0:04:24]} 13. Nbd2 {[%emt 0:01:10]} c3 {[%emt 0:05:05] The position is equal.} 14. bxc3 {[%emt 0:12:02]} Bf5 {[%emt 0:08:44] [#]} 15. Ne4 $146 {[%emt 0:10:57]} ({Predecessor:} 15. Nd4 Bd3 16. Re1 Nd5 17. N2f3 Qf6 18. Bg5 Qg6 19. Qa5 Bc4 20. Bh4 Rb2 21. Bg3 {0-1 (62) Troselj,I (1857)-Kovac,P (1949) Vinkovci 2020}) 15... Nd5 {[%emt 0:09:08]} 16. Bg5 {[%emt 0:11:49]} f6 {[%emt 0:03:14]} 17. Bh4 {[%emt 0:04:00]} Kh8 {[%emt 0:08:32]} (17... Re8 $11 18. Rfe1 Nb6 19. Qb3+ Be6) 18. Nxd6 $16 {[%emt 0:02:18]} Qxd6 {[%emt 0:00:03]} 19. Bg3 {[%emt 0:01:44]} (19. Nd4 $1 $16 {[%cal Rd4f5]} Bd3 20. Bg3) 19... Qc5 $11 {[%emt 0:01:08]} 20. Qd4 {[%emt 0:34:23]} Qxc6 {[%emt 0:03:30]} 21. c4 {[%emt 0:00:13][%cal Bc3c4,Bc4c5][%mdl 32]} Nb6 {[%emt 0:03:53]} 22. Rfc1 {[%emt 0:06:09] Threatening Qf4.} (22. c5 $5 {[%cal Rc5b6]} Na4 23. Rac1 $14) 22... Rfc8 {[%emt 0:11:26]} (22... Rfd8 $11 23. Qf4 Qc5) 23. Qf4 {[%emt 0:02:41]} Bd3 {[%emt 0:03:43]} 24. Nd4 {[%emt 0:03:16]} Qd7 {[%emt 0:00:34]} 25. c5 {[%emt 0:03:01]} Nc4 {[%emt 0:08:54] Inhibits Qe3.} 26. Rd1 {[%emt 0:01:03]} Nb2 {[%emt 0:03:48]} 27. Rd2 {[%emt 0:00:20]} Bg6 {[%emt 0:00:54]} 28. Qf3 {[%emt 0:05:46] Inhibits Nd3.} Re8 {[%emt 0:04:16][%cal Ob2d3]} (28... Qf7 $5 {[%cal Rb2c4]}) 29. Qc3 {[%emt 0:00:51]} Na4 {[%emt 0:02:09]} 30. Qa5 $36 {[%emt 0:00:14][%csl LRa6,LRc7][%mdl 2048] Black is under pressure.} (30. Qc4 $5 {[%cal Rh2h3]}) 30... Nb2 $2 {[%emt 0:01:45] [#]} (30... Qe7 $1 $11 31. Rdd1 (31. Qxa4 $2 Qe1+ 32. Rxe1 Rxe1#) 31... Nxc5) 31. Qxc7 {[%emt 0:00:55]} (31. c6 $1 $18 {[%cal Rc6d7] is the precise move to win.} Qf7 32. Qxc7) 31... Qa4 {[%emt 0:01:45][%mdl 8192] [#]} (31... Qd5 $16) 32. Ne6 $1 $18 {[%emt 0:00:42][%csl Ge6][%cal Rc7g7][%mdl 512]} Rg8 {[%emt 0:00:01] [#]} 33. Nxg7 {[%emt 0:00:55][%mdl 512]} Nd3 {[%emt 0:00:28]} (33... Nc4 34. Qf4) 34. Ne6 {[%emt 0:00:25]} Rbe8 {[%emt 0:01:20] Prevents Qe7.} 35. Nf4 {[%emt 0:00:29]} Qxa3 $2 {[%emt 0:02:49]} (35... Nxf4 {is a better chance.} 36. Qxf4 (36. Bxf4 Rc8 $16) 36... Qxf4 37. Bxf4 Re4) 36. Rdd1 {[%emt 0:00:06]} Qc3 {[%emt 0:00:35]} 37. Nxd3 {[%emt 0:00:32]} Bxd3 {[%emt 0:00:07]} 38. Rac1 {[%emt 0:00:22]} Bc2 {[%emt 0:00:46][%cal Oc2d1]} 39. Rf1 {[%emt 0:00:22]} Rc8 {[%emt 0:00:46]} 40. Qd6 {[%emt 0:00:00] Black must now prevent Bh4.} Rxc5 $2 {[%emt 0:00:00] [#]} (40... Kg7 {was necessary.} 41. Bh4 (41. Qxa6 Qxc5 42. Rfe1 Qg5 $16) 41... Rge8) 41. Rxc2 $1 {[%emt 0:05:23][%mdl 512]} Qxc2 {[%emt 0:02:56]} 42. Qxf6+ {[%emt 0:00:09]} Rg7 {[%emt 0:00:02]} 43. Qd8+ {[%emt 0:03:23]} (43. Be5 Rxe5 44. Qxe5 h6 $18) 43... Rg8 {[%emt 0:00:12]} 44. Qd4+ {[%emt 0:00:04]} (44. Be5+ Rxe5 45. Qf6+ Rg7 46. Qf8+ (46. Qxe5 h6 $18) 46... Rg8 47. Qf6+ Rg7 48. Qxe5 h6 $18) 44... Rg7 {[%emt 0:00:04]} 45. Be5 {[%emt 0:06:04]} Rxe5 {[%emt 0:00:05]} 46. Qxe5 {[%emt 0:00:03][%mdl 4096] Endgame KQR-KQR} h6 {[%emt 0:00:15]} (46... Qc7 {is a better defense.} 47. Qf6 Qe7 48. Qxa6 Qb7 49. Qxb7 Rxb7) 47. g3 {[%emt 0:01:12]} Kh7 {[%emt 0:00:23]} 48. Qd5 {[%emt 0:03:03] Inhibits Qd3.} Rc7 {[%emt 0:02:30]} 49. Ra1 {[%emt 0:00:55]} Qg6 {[%emt 0:01:03]} 50. Qa8 {[%emt 0:01:34]} Qd3 {[%emt 0:08:52]} 51. Kg2 {[%emt 0:01:55]} ({Inferior is} 51. Qxa6 Rc1+ 52. Kg2 Qe4+ 53. Kh3 Qf5+ 54. Kh4 (54. Kg2 Qe4+ 55. Kh3 Qf5+ 56. Kh4 Qg5+ 57. Kh3 Qf5+ $11) 54... Qg5+ 55. Kh3 Qf5+ 56. Kh4 (56. Kg2 Qe4+ 57. Kh3 Qf5+ $11) 56... Qg5+ 57. Kh3 Qf5+ $11) 51... Rf7 {[%emt 0:01:14][%cal Of7f2]} 52. Re1 {[%emt 0:06:00] Strongly threatening Re8.} ({Weaker is} 52. Rxa6 Qe2 53. Ra1 Qxf2+ 54. Kh1 Kg7 $14) 52... Qc2 {[%emt 0:03:13]} 53. Qe4+ {[%emt 0:01:14]} Qxe4+ {[%emt 0:00:04]} 54. Rxe4 $16 {[%emt 0:00:02] KR-KR} a5 {[%emt 0:00:05]} 55. Ra4 {[%emt 0:00:09]} Rf5 {[%emt 0:00:11][%mdl 8192]} (55... Ra7 $16 56. f4 Kg6) 56. f4 $2 {[%emt 0:02:18]} (56. g4 $18 {has better winning chances.} Rb5 57. Kg3) 56... Rb5 {[%emt 0:00:21]} 57. Kf3 {[%emt 0:00:33] Hoping for g4.} Kg6 {[%emt 0:01:29]} 58. Rc4 {[%emt 0:02:42]} Rb2 $2 {[%emt 0:01:42]} (58... h5 $16 59. Ke4 Rb2) 59. Rc6+ $18 {[%emt 0:00:30]} Kg7 {[%emt 0:00:02]} 60. h3 {[%emt 0:01:08]} a4 {[%emt 0:02:54]} 61. Ra6 {[%emt 0:00:08]} Rb3+ {[%emt 0:00:11] [#]} 62. Kg4 $1 {[%emt 0:00:11]} a3 $2 {[%emt 0:00:05]} (62... Rb4 63. h4 Rb3 64. Ra7+ Kf8 65. Rxa4 h5+ 66. Kh3 (66. Kxh5 Rxg3 67. Ra7 Rg1 $18) 66... Kg7) 63. f5 {[%emt 0:02:48]} Kh7 {[%emt 0:06:02]} 64. Ra7+ {[%emt 0:00:21]} Kg8 {[%emt 0:00:01]} 65. f6 $2 {[%emt 0:01:15]} ({Only move:} 65. Kh4 $18 {And now g4 would win.} Kf8 66. g4) 65... Kf8 $14 {[%emt 0:01:50]} 66. Kf4 {[%emt 0:00:25] Threatens to win with g4.} Rb4+ {[%emt 0:01:30]} 67. Kf5 {[%emt 0:00:21] Intending Kg6 and mate.} Rb5+ {[%emt 0:00:01]} 68. Kg4 {[%emt 0:01:07]} (68. Ke4 $5 {[%cal Ra7a3]}) 68... Rb6 {[%emt 0:03:26]} 69. Kf5 {[%emt 0:00:03] Kg6 would kill now.} Rb5+ {[%emt 0:00:04]} 70. Kg4 {[%emt 0:01:07]} Rb6 {[%emt 0:00:15]} 71. Rxa3 {[%emt 0:00:21]} Rxf6 {[%emt 0:00:02]} 72. Rf3 $2 {[%emt 0:00:04][%mdl 8192]} (72. h4 $14) 72... h5+ $1 {[%emt 0:00:05] What a bad dream for White.  Weighted Error Value: White=0.37/Black=0.60} 0-1